Workbook

Sheet Sheet1
W2: Macros enabled?
W4: Click to start and stop the animation | AG4: 32
AG5: TRUE | AO5: TRUE
AG6: =Beaufort_value*100/12 -> 41.66666667 | AH6: =RANDBETWEEN(5,10)/10*wind_tree_force/25*wind_direction -> 0.8333333333 | AO6: =RAND()*Beaufort_value/6 -> 0.05525844066
AG7: =IF(RAND()>0.5,1,-1) -> 1
AG8: 15358 | AL8: Beaufort | AM8: Description | AO8: =IF(Add_wind_in_star=TRUE,5-star_movement,5) -> 4.944741559
AL9: 0 | AM9: Calm | AO9: =IF(Add_wind_in_star=TRUE,2-(star_movement*2/5),2) -> 1.977896624
X10: Wind Parameters | AG10: 0 | AH10: 1 | AI10: -1 | AL10: 1 | AM10: Light Air | AO10: =IF(Add_wind_in_star=TRUE,5-star_movement,5) -> 4.944741559
AG11: 1 | AH11: 1 | AI11: =-AH11 -> -1 | AL11: 2 | AM11: Light Breeze | AO11: =IF(Add_wind_in_star=TRUE,2-(star_movement*2/5),2) -> 1.977896624
M12: =RANDBETWEEN(1,3) -> 3 | AG12: 2 | AH12: =25+IF(Add_wind_in_tree=TRUE,tree_movement*2/AG12,0) -> 25.83333333 | AI12: =-AH12 -> -25.83333333 | AL12: 3 | AM12: Gentle Breeze | AO12: =IF(Add_wind_in_star=TRUE,5-star_movement,5) -> 4.944741559
AG13: 3 | AH13: =22+IF(Add_wind_in_tree=TRUE,tree_movement*2/AG13,0) -> 22.55555556 | AI13: -22.55555556 | AL13: 4 | AM13: Moderate Breeze | AO13: =IF(Add_wind_in_star=TRUE,2-(star_movement*2/5),2) -> 1.977896624
L14: =RANDBETWEEN(1,3) -> 1 | X14: Beaufort scale: | AG14: 4 | AH14: =18+IF(Add_wind_in_tree=TRUE,tree_movement*2/AG14,0) -> 18.41666667 | AI14: -18.41666667 | AL14: 5 | AM14: Fresh Breeze | AO14: =IF(Add_wind_in_star=TRUE,5-star_movement,5) -> 4.944741559
K15: =RANDBETWEEN(1,3) -> 2 | X15: 0 | AA15: 12 | AG15: 5 | AH15: =19+IF(Add_wind_in_tree=TRUE,tree_movement*2/AG15,0) -> 19.33333333 | AI15: -19.33333333 | AL15: 6 | AM15: Strong Breeze | AO15: =IF(Add_wind_in_star=TRUE,2-(star_movement*2/5),2) -> 1.977896624
M16: =RANDBETWEEN(1,3) -> 3 | AG16: 6 | AH16: =16+IF(Add_wind_in_tree=TRUE,tree_movement*2/AG16,0) -> 16.27777778 | AI16: -16.27777778 | AL16: 7 | AM16: High Wind | AO16: =IF(Add_wind_in_star=TRUE,5-star_movement,5) -> 4.944741559
AG17: 7 | AH17: =19+IF(Add_wind_in_tree=TRUE,tree_movement*2/AG17,0) -> 19.23809524 | AI17: =-AH17 -> -19.23809524 | AL17: 8 | AM17: Gale | AO17: =IF(Add_wind_in_star=TRUE,2-(star_movement*2/5),2) -> 1.977896624
J18: =RANDBETWEEN(1,3) -> 1 | N18: =RANDBETWEEN(1,3) -> 1 | AG18: 8 | AH18: =17+IF(Add_wind_in_tree=TRUE,tree_movement*2/AG18,0) -> 17.20833333 | AI18: -17.20833333 | AL18: 9 | AM18: Strong Gale
A19: Visit the Cintellis University website to learn about the techniques used in this worksheet | K19: =RANDBETWEEN(1,3) -> 2 | M19: =RANDBETWEEN(1,3) -> 1 | X19: 5 | Y19: Beaufort | Z19: =VLOOKUP(Beaufort_value,Beaufort_Table[],2,FALSE) -> Fresh Breeze | AG19: 9 | AH19: =14+IF(Add_wind_in_tree=TRUE,tree_movement*2/AG19,0) -> 14.18518519 | AI19: -14.18518519 | AL19: 10 | AM19: Storm
AG20: 10 | AH20: =15+IF(Add_wind_in_tree=TRUE,tree_movement*2/AG20,0) -> 15.16666667 | AI20: -15.16666667 | AL20: 11 | AM20: Violent Storm
J21: =RANDBETWEEN(1,3) -> 3 | N21: =RANDBETWEEN(1,3) -> 3 | AG21: 11 | AH21: =12+IF(Add_wind_in_tree=TRUE,tree_movement*2/AG21,0) -> 12.15151515 | AI21: -12.15151515 | AL21: 12 | AM21: Hurricane
L22: =RANDBETWEEN(1,3) -> 3 | W22: Macros disabled? | AG22: 12 | AH22: =13+IF(Add_wind_in_tree=TRUE,tree_movement*2/AG22,0) -> 13.13888889 | AI22: -13.13888889
J23: =RANDBETWEEN(1,3) -> 3 | O23: =RANDBETWEEN(1,3) -> 2 | AG23: 13 | AH23: =11+IF(Add_wind_in_tree=TRUE,tree_movement*2/AG23,0) -> 11.12820513 | AI23: -11.12820513
I24: =RANDBETWEEN(1,3) -> 3 | M24: =RANDBETWEEN(1,3) -> 3 | P24: =RANDBETWEEN(1,3) -> 2 | AG24: 14 | AH24: =10+IF(Add_wind_in_tree=TRUE,tree_movement*2/AG24,0) -> 10.11904762 | AI24: -10.11904762
K25: =RANDBETWEEN(1,3) -> 1 | X25: Hit the spin button to animate the Cintellis Christmas tree | AG25: 15 | AH25: =11+IF(Add_wind_in_tree=TRUE,tree_movement*2/AG25,0) -> 11.11111111 | AI25: -11.11111111
AG26: 16 | AH26: =8+IF(Add_wind_in_tree=TRUE,tree_movement*2/AG26,0) -> 8.104166667 | AI26: -8.104166667
AG27: 17 | AH27: =9+IF(Add_wind_in_tree=TRUE,tree_movement*2/AG27,0) -> 9.098039216 | AI27: -9.098039216
AG28: 18 | AH28: =6+IF(Add_wind_in_tree=TRUE,tree_movement*2/AG28,0) -> 6.092592593 | AI28: -6.092592593
AG29: 19 | AH29: =7+IF(Add_wind_in_tree=TRUE,tree_movement*2/AG29,0) -> 7.087719298 | AI29: -7.087719298
W30: Follow us: | AG30: 20 | AH30: =4+IF(Add_wind_in_tree=TRUE,tree_movement*2/AG30,0) -> 4.083333333 | AI30: -4.083333333
B31: info@cintellis.com | AG31: 21 | AH31: =5+IF(Add_wind_in_tree=TRUE,tree_movement*2/AG31,0) -> 5.079365079 | AI31: -5.079365079
B32: http://www.cintellis.com | AG32: 22 | AH32: =2+IF(Add_wind_in_tree=TRUE,tree_movement*2/AG32,0) -> 2.075757576 | AI32: -2.075757576
AG33: 23 | AH33: =3+IF(Add_wind_in_tree=TRUE,tree_movement*2/AG33,0) -> 3.072463768 | AI33: -3.072463768
AG34: 24 | AH34: =1+IF(Add_wind_in_tree=TRUE,tree_movement*2/AG34,0) -> 1.069444444 | AI34: -1.069444444
AG35: 25 | AH35: 0 | AI35: 0
